fUST/lending_fUST_20250523
["ID","MTS","AMOUNT","RATE_DAILY","PERIOD"]
[362087851,1747986659909,-158.2090311,0.00020904,2]
[362087852,1747986659920,-176.1127665,0.00020904,2]
[362087853,1747986659930,-306.0,0.00020904,2]
[362087854,1747986659940,-570.1314833,0.00020904,2]
[362087855,1747986659950,-570.1314833,0.00020904,2]
[362087856,1747986659961,-176.1127667,0.00020904,2]
[362087857,1747986659971,-158.2090311,0.00020904,2]
[362087858,1747986659981,-13286.31812257,0.00021,3]
[362087859,1747986659990,-3000.0,0.00021,2]
[362087860,1747986660000,-151.0,0.00021,2]
[362087861,1747986660010,-200.16398902,0.00021,2]
[362087862,1747986660021,-151.0,0.00021,2]
[362087863,1747986660031,-309.82159,0.00021,2]
[362087864,1747986660041,-309.82159,0.00021,2]
[362087865,1747986660051,-21463.13149264,0.00021,7]
[362087866,1747986660062,-314.57823366,0.00021,7]
[362087867,1747986660072,-314.57823366,0.00021,3]
[362087868,1747986660083,-894.64583333,0.00021,7]
[362087869,1747986660093,-12647.66147447,0.00021,7]
[362087870,1747986660103,-212.48480548,0.00021,7]
[362087871,1747986660113,-3000.0,0.0002101,2]
[362087872,1747986660125,-595.349336,0.00021012,3]
[362087873,1747986660135,-3000.0,0.0002102,2]
[362087874,1747986660145,-151.0,0.0002102,2]
[362087875,1747986660155,-186.049093,0.0002102,2]
[362087876,1747986660165,-186.049093,0.0002102,2]
[362087877,1747986660175,-3000.0,0.0002103,2]
[362087878,1747986660186,-10566.58661759,0.00021037,2]
[362087879,1747986660211,-7601.52752722,0.00021038,4]
[362087880,1747986660221,-3000.0,0.0002104,2]
[362087881,1747986660231,-3000.0,0.0002105,2]
[362087882,1747986660241,-151.0,0.00021052,2]
[362087883,1747986660252,-151.0,0.00021052,2]
[362087884,1747986660262,-3000.0,0.0002106,2]
[362087885,1747986660273,-151.0,0.0002106,2]
[362087886,1747986660283,-151.0,0.0002106,2]
[362087887,1747986660292,-3000.0,0.0002107,2]
[362087888,1747986660303,-3000.0,0.0002108,2]
[362087889,1747986660314,-151.0,0.0002108,2]
[362087890,1747986660324,-3000.0,0.0002109,2]
[362087891,1747986660334,-151.0,0.00021095,2]
[362087892,1747986660344,-430.0,0.00021095,2]
[362087893,1747986660354,-299.04887311,0.00021095,2]
[362087894,1747986660364,-193.93266202,0.00021095,2]
[362087895,1747986660376,-438.85,0.00021095,2]
[362087896,1747986660386,-627.55,0.00021095,2]
[362087897,1747986660396,-430.0,0.00021095,2]
[362087898,1747986660406,-430.0,0.00021095,2]
[362087899,1747986660416,-506.23,0.00021095,2]
[362087900,1747986660427,-792.87,0.00021095,2]
[362087901,1747986660437,-632.28,0.00021095,2]
[362087902,1747986660446,-743.79,0.00021095,2]
[362087903,1747986660456,-430.0,0.00021095,2]
[362087904,1747986660466,-2056.54,0.00021095,2]
[362087905,1747986660476,-583.55,0.00021095,2]
[362087906,1747986660486,-751.02,0.00021095,2]
[362087907,1747986660496,-746.21,0.00021095,2]
[362087908,1747986660510,-626.41,0.00021095,2]
[362087909,1747986660520,-494.43,0.00021095,2]
[362087910,1747986660531,-430.0,0.00021095,2]
[362087911,1747986660542,-430.0,0.00021095,2]
[362087912,1747986660552,-2083.46,0.00021095,2]
[362087913,1747986660562,-656.86,0.00021095,2]
[362087914,1747986660571,-778.2,0.00021095,2]
[362087915,1747986660582,-1637.49,0.00021095,2]
[362087916,1747986660592,-155.0,0.00021096,2]
[362087917,1747986660602,-3000.0,0.000211,2]
[362087918,1747986660611,-3000.0,0.0002111,2]
[362087919,1747986660621,-3000.0,0.0002112,2]
[362087920,1747986660631,-3000.0,0.0002113,2]
[362087921,1747986660641,-151.0,0.0002113,2]
[362087922,1747986660651,-151.0,0.0002113,2]
[362087923,1747986660660,-151.0,0.0002113,2]
[362087924,1747986660670,-151.0,0.0002113,2]
[362087925,1747986660680,-344.541024,0.0002113,2]
[362087926,1747986660691,-344.541024,0.0002113,2]
[362087927,1747986660812,-151.0,0.0002113,2]
[362087928,1747986660834,-3000.0,0.0002114,2]
[362087929,1747986660844,-3000.0,0.0002115,2]
[362087930,1747986660854,-257.7779726,0.00021151,2]
[362087931,1747986660864,-3000.0,0.0002116,2]
[362087932,1747986660875,-500.0,0.00021162,2]
[362087933,1747986660885,-1700.0,0.00021164,2]
[362087934,1747986660896,-1800.0,0.00021169,2]
[362087935,1747986660906,-1500.0,0.00021169,2]
[362087936,1747986660916,-3000.0,0.0002117,2]
[362087937,1747986660926,-151.0,0.00021177,2]
[362087938,1747986660936,-181.134768,0.00021177,2]
[362087939,1747986660945,-157.320276,0.00021177,2]
[362087940,1747986660955,-3000.0,0.0002118,2]
[362087941,1747986660965,-3000.0,0.0002119,2]
[362087942,1747986660975,-182.638302,0.0002119,2]
[362087943,1747986660984,-182.638302,0.0002119,2]
[362087944,1747986660994,-3000.0,0.000212,2]
[362087945,1747986661004,-2426.98,0.000212,2]
[362087946,1747986661013,-3000.0,0.0002121,2]
[362087947,1747986661023,-151.0,0.0002121,2]
[362087948,1747986661033,-3000.0,0.0002122,2]
[362087949,1747986661042,-3000.0,0.0002123,2]
[362087950,1747986661052,-151.0,0.0002123,2]
[362087951,1747986661063,-234.397408,0.0002123,2]
[362087952,1747986661073,-234.397408,0.0002123,2]
[362087953,1747986661083,-151.0,0.0002123,2]
[362087954,1747986661094,-348.02608837,0.00021231,2]
[362087955,1747986661104,-257.7779726,0.00021233,2]
[362087956,1747986661114,-3000.0,0.0002124,2]
[362087957,1747986661127,-151.0,0.0002124,2]
[362087958,1747986661137,-151.0,0.0002124,2]
[362087959,1747986661148,-151.0,0.0002124,2]
[362087960,1747986661158,-3000.0,0.0002125,2]
[362087961,1747986661169,-595.349336,0.0002125,2]
[362087962,1747986661180,-3000.0,0.0002126,2]
[362087963,1747986661190,-3000.0,0.0002127,2]
[362087964,1747986661201,-151.0,0.0002127,2]
[362087965,1747986661210,-276.938145,0.0002127,2]
[362087966,1747986661220,-276.938145,0.0002127,2]
[362087967,1747986661230,-151.0,0.00021279,2]
[362087968,1747986661240,-3000.0,0.0002128,2]
[362087969,1747986661250,-309.82159,0.0002128,2]
[362087970,1747986661260,-309.82159,0.0002128,2]
[362087971,1747986661270,-3000.0,0.0002129,2]
[362087972,1747986661279,-3000.0,0.000213,2]
[362087973,1747986661289,-525.7,0.00021302,15]
[362087974,1747986661299,-3000.0,0.0002131,2]
[362087975,1747986661309,-7601.52752722,0.00021314,5]
[362087976,1747986661319,-3000.0,0.0002132,2]
[362087977,1747986661331,-3000.0,0.0002133,2]
[362087978,1747986661340,-151.0,0.0002133,2]
[362087979,1747986661350,-186.049093,0.0002133,2]
[362087980,1747986661361,-186.049093,0.0002133,2]
[362087981,1747986661371,-3000.0,0.0002134,2]
[362087982,1747986661385,-257.7779726,0.00021342,2]
[362087983,1747986661394,-3000.0,0.0002135,2]
[362087984,1747986661404,-1504.59345645,0.0002136,2]
[362087985,1747986661414,-2000.0,0.0002136,2]
[362087986,1747986661424,-3000.0,0.0002136,2]
[362087987,1747986661433,-151.0,0.00021369,2]
[362087988,1747986661443,-151.866835,0.00021369,2]
[362087989,1747986661453,-180.388866,0.00021369,2]
[362087990,1747986661463,-430.0,0.00021369,2]
[362087991,1747986661473,-627.55,0.00021369,2]
[362087992,1747986661483,-430.0,0.00021369,2]
[362087993,1747986661492,-551.12049654,0.00021369,2]
[362087994,1747986661504,-506.23,0.00021369,2]
[362087995,1747986661515,-792.87,0.00021369,2]
[362087996,1747986661526,-632.28,0.00021369,2]
[362087997,1747986661536,-743.79,0.00021369,2]
[362087998,1747986661547,-430.0,0.00021369,2]
[362087999,1747986661556,-2056.54,0.00021369,2]
[362088000,1747986661566,-583.55,0.00021369,2]
[362088001,1747986661576,-751.02,0.00021369,2]
[362088002,1747986661586,-746.21,0.00021369,2]
[362088003,1747986661596,-626.41,0.00021369,2]
[362088004,1747986661605,-494.43,0.00021369,2]
[362088005,1747986661614,-430.0,0.00021369,2]
[362088006,1747986661626,-430.0,0.00021369,2]
[362088007,1747986661636,-2083.46,0.00021369,2]
[362088008,1747986661646,-656.86,0.00021369,2]
[362088009,1747986661655,-778.2,0.00021369,2]
[362088010,1747986661664,-1637.49,0.00021369,2]
[362088011,1747986661674,-3000.0,0.0002137,2]
[362088012,1747986661683,-151.0,0.0002137,2]
[362088013,1747986661693,-151.0,0.0002137,2]
[362088014,1747986661702,-3000.0,0.0002138,2]
[362088015,1747986661711,-2500.0,0.00021388,2]
[362088016,1747986661721,-3000.0,0.0002139,2]
[362088017,1747986661730,-151.0,0.0002139,2]
[362088018,1747986661740,-344.541024,0.0002139,2]
[362088019,1747986661749,-344.541024,0.0002139,2]
[362088020,1747986661758,-151.0,0.0002139,2]
[362088021,1747986661767,-153.875118,0.00021397,2]
[362088022,1747986661777,-153.0,0.00021397,2]
[362088023,1747986661786,-3000.0,0.000214,2]
[362088024,1747986661796,-3000.0,0.0002141,2]
[362088025,1747986661806,-3000.0,0.0002142,2]
[362088026,1747986661815,-3000.0,0.0002143,2]
[362088027,1747986661825,-4014.066004,0.0002144,2]
[362088028,1747986661835,-823.0,0.00021452,2]
[362088029,1747986661846,-823.0,0.00021452,2]
[362088030,1747986661855,-257.7779726,0.00021452,2]
[362088031,1747986661865,-151.0,0.00021521,2]
[362088032,1747986661876,-257.7779726,0.00021562,2]
[362088033,1747986661885,-7601.52752722,0.0002159,5]
[362088034,1747986661894,-151.0,0.00021643,2]
[362088035,1747986661904,-151.0,0.00021643,2]
[362088036,1747986661913,-151.0,0.00021643,2]
[362088037,1747986661922,-430.0,0.00021643,2]
[362088038,1747986661932,-627.55,0.00021643,2]
[362088039,1747986661941,-153.33523347,0.00021643,2]
[362088040,1747986661951,-506.23,0.00021643,2]
[362088041,1747986661961,-792.87,0.00021643,2]
[362088042,1747986661970,-632.28,0.00021643,2]
[362088043,1747986661980,-743.79,0.00021643,2]
[362088044,1747986661990,-430.0,0.00021643,2]
[362088045,1747986662000,-2056.54,0.00021643,2]
[362088046,1747986662010,-583.55,0.00021643,2]
[362088047,1747986662020,-751.02,0.00021643,2]
[362088048,1747986662030,-746.21,0.00021643,2]
[362088049,1747986662040,-626.41,0.00021643,2]
[362088050,1747986662049,-494.43,0.00021643,2]
[362088051,1747986662058,-430.0,0.00021643,2]
[362088052,1747986662068,-430.0,0.00021643,2]
[362088053,1747986662079,-2083.46,0.00021643,2]
[362088054,1747986662089,-656.86,0.00021643,2]
[362088055,1747986662099,-778.2,0.00021643,2]
[362088056,1747986662109,-1637.49,0.00021643,2]
[362088057,1747986662119,-257.7779726,0.00021644,2]
[362088058,1747986662130,-155.0,0.00021644,2]
[362088059,1747986662139,-182.638302,0.000217,2]
[362088060,1747986662149,-182.638302,0.000217,2]
[362088061,1747986662158,-178.93976878,0.00021704,2]
[362088062,1747986662168,-1000.0,0.0002171,2]
[362088063,1747986662178,-2400.0,0.00021717,2]
[362088064,1747986662188,-2000.0,0.00021717,2]
[362088065,1747986662199,-176.1127665,0.00021726,2]
[362088066,1747986662208,-158.2090311,0.00021726,2]
[362088067,1747986662218,-570.1314833,0.00021726,2]
[362088068,1747986662228,-158.2090311,0.00021726,2]
[362088069,1747986662238,-570.1314833,0.00021726,2]
[362088070,1747986662247,-176.1127667,0.00021726,2]
[362088071,1747986662257,-570.1314833,0.00021726,2]
[362088072,1747986662266,-158.2090311,0.00021726,2]
[362088073,1747986662276,-176.1127665,0.00021726,2]
[362088074,1747986662285,-570.1314833,0.00021726,2]
[362088075,1747986662295,-333.181346,0.00021726,2]
[362088076,1747986662305,-356.754538,0.00021726,2]
[362088077,1747986662315,-570.1314833,0.00021726,2]
[362088078,1747986662325,-570.1314833,0.00021726,2]
[362088079,1747986662335,-570.1314833,0.00021726,2]
[362088080,1747986662345,-570.1314833,0.00021726,2]
[362088081,1747986662356,-433.6560514,0.00021726,2]
[362088082,1747986662365,-971.672,0.00021734,2]
[362088083,1747986662375,-257.7779726,0.00021753,2]
[362088084,1747986662385,-151.0,0.00021762,2]
[362088085,1747986662395,-234.397408,0.00021762,2]
[362088086,1747986662404,-234.397408,0.00021762,2]
[362088087,1747986662413,-151.0,0.00021762,2]
[362088088,1747986662423,-595.349336,0.00021762,5]
[362088089,1747986662433,-2528.02594488,0.00021818,2]
[362088090,1747986662443,-151.0,0.00021834,2]
[362088091,1747986662454,-276.938145,0.00021834,2]
[362088092,1747986662464,-276.938145,0.00021834,2]
[362088093,1747986662474,-3000.0,0.00021849,3]
[362088094,1747986662484,-257.7779726,0.00021863,2]
[362088095,1747986662494,-7601.52752722,0.00021866,6]
[362088096,1747986662506,-2500.0,0.00021908,2]
[362088097,1747986662516,-151.0,0.00021917,2]
[362088098,1747986662526,-309.82159,0.00021917,2]
[362088099,1747986662536,-309.82159,0.00021917,2]
[362088100,1747986662546,-616.20954828,0.00021917,2]
[362088101,1747986662556,-200.0,0.00021917,2]
[362088102,1747986662566,-430.0,0.00021917,2]
[362088103,1747986662577,-627.55,0.00021917,2]
[362088104,1747986662588,-500.0,0.00021917,2]
[362088105,1747986662598,-506.23,0.00021917,2]
[362088106,1747986662608,-792.87,0.00021917,2]
[362088107,1747986662618,-632.28,0.00021917,2]
[362088108,1747986662746,-743.79,0.00021917,2]
[362088109,1747986662758,-430.0,0.00021917,2]
[362088110,1747986662768,-2056.54,0.00021917,2]
[362088111,1747986662778,-583.55,0.00021917,2]
[362088112,1747986662788,-751.02,0.00021917,2]
[362088113,1747986662799,-746.21,0.00021917,2]
[362088114,1747986662808,-626.41,0.00021917,2]
[362088115,1747986662819,-494.43,0.00021917,2]
[362088116,1747986662830,-430.0,0.00021917,2]
[362088117,1747986662841,-288.35218839,0.00021917,2]
[362088118,1747986662853,-2083.46,0.00021917,2]
[362088119,1747986662862,-656.86,0.00021917,2]
[362088120,1747986662872,-778.2,0.00021917,2]
[362088121,1747986662883,-1637.49,0.00021917,2]
[362088122,1747986662893,-500.0,0.00021917,2]
[362088123,1747986662904,-151.0,0.00021918,2]
[362088124,1747986662915,-151.0,0.00021918,2]
[362088125,1747986662924,-151.0,0.00021918,2]
[362088126,1747986662934,-151.0,0.00021918,2]
[362088127,1747986662943,-157.281424,0.00021918,7]
[362088128,1747986662954,-151.0,0.00021918,7]
[362088129,1747986662963,-151.0,0.00021918,7]
[362088130,1747986662972,-528.58776244,0.00021918,2]
[362088131,1747986662981,-528.58776244,0.00021918,2]
[362088132,1747986662992,-528.58776244,0.00021918,2]
[362088133,1747986663001,-528.58776244,0.00021918,2]
[362088134,1747986663011,-528.58776244,0.00021918,2]
[362088135,1747986663020,-528.58776244,0.00021918,2]
[362088136,1747986663030,-528.58776244,0.00021918,2]
[362088137,1747986663039,-528.58776244,0.00021918,2]
[362088138,1747986663049,-528.58776244,0.00021918,2]
[362088139,1747986663059,-528.58776244,0.00021918,2]
[362088140,1747986663070,-528.58776244,0.00021918,2]
[362088141,1747986663080,-528.58776244,0.00021918,2]
[362088142,1747986663090,-755.49770827,0.00021918,2]
[362088143,1747986663100,-755.49770827,0.00021918,2]
[362088144,1747986663110,-755.49770827,0.00021918,2]
[362088145,1747986663119,-755.49770827,0.00021918,2]
[362088146,1747986663130,-755.49770827,0.00021918,2]
[362088147,1747986663140,-755.49770827,0.00021918,2]
[362088148,1747986663150,-794.72041159,0.00021918,2]
[362088149,1747986663160,-794.72041159,0.00021918,2]
[362088150,1747986663169,-794.72041159,0.00021918,2]
[362088151,1747986663179,-794.72041159,0.00021918,2]
[362088152,1747986663188,-794.72041159,0.00021918,2]
[362088153,1747986663198,-1342.19447292,0.00021918,2]
[362088154,1747986663208,-151.0,0.00021939,7]
[362088155,1747986663219,-186.049093,0.00021939,7]
[362088156,1747986663228,-186.049093,0.00021939,7]
[362088157,1747986663238,-155.1257635,0.00021945,2]
[362088158,1747986663248,-257.7779726,0.00021973,2]
[362088159,1747986663259,-100035.9927118,0.00022,2]
[362088160,1747986663269,-251.14129537,0.00022,2]
[362088161,1747986663280,-501.80376986,0.00022,3]
[362088162,1747986663290,-5000.0,0.00022,5]
[362088163,1747986663300,-5000.0,0.00022,5]
[362088164,1747986663310,-5000.0,0.00022,5]
[362088165,1747986663320,-5000.0,0.00022,5]
[362088166,1747986663330,-5000.0,0.00022,5]
[362088167,1747986663340,-1000.0,0.00022,22]
[362088168,1747986663350,-151.0,0.00022,7]
[362088169,1747986663360,-151.0,0.00022,7]
[362088170,1747986663369,-182.638302,0.00022,7]
[362088171,1747986663380,-182.638302,0.00022,7]
[362088172,1747986663389,-151.0,0.00022,7]
[362088173,1747986663399,-151.0,0.00022,7]
[362088174,1747986663408,-151.0,0.00022,7]
[362088175,1747986663418,-151.0,0.00022,7]
[362088176,1747986663428,-151.0,0.00022,7]
[362088177,1747986663438,-185.031523,0.00022,7]
[362088178,1747986663447,-151.0,0.00022,7]
[362088179,1747986663457,-153.246323,0.00022,7]
[362088180,1747986663467,-152.177729,0.00022,7]
[362088181,1747986663476,-151.0,0.00022,7]
[362088182,1747986663486,-234.397408,0.00022,7]
[362088183,1747986663496,-234.397408,0.00022,7]
[362088184,1747986663507,-151.0,0.00022,7]
[362088185,1747986663517,-151.0,0.00022,7]
[362088186,1747986663526,-151.0,0.00022,7]
[362088187,1747986663535,-186.049093,0.00022,7]
[362088188,1747986663546,-186.049093,0.00022,7]
[362088189,1747986663556,-151.0,0.00022,7]
[362088190,1747986663566,-309.82159,0.00022,7]
[362088191,1747986663575,-309.82159,0.00022,7]
[362088192,1747986663586,-276.938145,0.00022,7]
[362088193,1747986663596,-276.938145,0.00022,7]
[362088194,1747986663606,-200.0,0.00022,4]
[362088195,1747986663616,-151.0,0.00022,7]
[362088196,1747986663627,-151.0,0.00022,7]
[362088197,1747986663637,-344.541024,0.00022,7]
[362088198,1747986663647,-344.541024,0.00022,7]
[362088199,1747986663657,-151.0,0.00022,7]
[362088200,1747986663667,-171.0,0.00022,2]
[362088201,1747986663677,-191.0,0.00022,2]
[362088202,1747986663688,-595.349336,0.00022009,3]
[362088203,1747986663698,-257.7779726,0.00022055,2]
[362088204,1747986663707,-151.0,0.0002207,2]
[362088205,1747986663716,-231.28369723,0.0002207,2]
[362088206,1747986663726,-960.0,0.00022081,2]
[362088207,1747986663735,-2233.0,0.00022081,2]
[362088208,1747986663745,-707.0,0.00022081,2]
[362088209,1747986663755,-160.0,0.00022084,3]
[362088210,1747986663765,-595.349336,0.00022141,6]
[362088211,1747986663775,-7601.52752722,0.00022141,6]
[362088212,1747986663784,-2528.02594485,0.0002216,2]
[362088213,1747986663794,-257.7779726,0.00022164,2]
[362088214,1747986663804,-69607.10464299,0.00022181,2]
[362088215,1747986663814,-182.638302,0.00022181,7]
[362088216,1747986663823,-182.638302,0.00022181,7]
[362088217,1747986663833,-151.0,0.00022181,7]
[362088218,1747986663843,-151.0,0.00022181,7]
[362088219,1747986663853,-151.0,0.00022181,7]
[362088220,1747986663862,-151.0,0.00022181,7]
[362088221,1747986663872,-151.0,0.00022181,7]
[362088222,1747986663883,-344.541024,0.00022181,7]
[362088223,1747986663893,-344.541024,0.00022181,7]
[362088224,1747986663902,-151.0,0.00022181,7]
[362088225,1747986663912,-151.0,0.00022191,7]
[362088226,1747986663921,-151.0,0.00022191,7]
[362088227,1747986663931,-151.0,0.00022191,7]
[362088228,1747986663940,-234.397408,0.00022191,7]
[362088229,1747986663950,-234.397408,0.00022191,7]
[362088230,1747986663960,-309.82159,0.00022191,7]
[362088231,1747986663969,-309.82159,0.00022191,7]
[362088232,1747986663979,-276.938145,0.00022191,7]
[362088233,1747986663988,-276.938145,0.00022191,7]
[362088234,1747986663998,-215.46,0.00022191,30]
[362088235,1747986664008,-232.02060622,0.00022191,2]
[362088236,1747986664018,-627.55,0.00022191,2]
[362088237,1747986664028,-506.23,0.00022191,2]
[362088238,1747986664038,-792.87,0.00022191,2]
[362088239,1747986664048,-632.28,0.00022191,2]
[362088240,1747986664058,-743.79,0.00022191,2]
[362088241,1747986664068,-430.0,0.00022191,2]
[362088242,1747986664078,-2056.54,0.00022191,2]
[362088243,1747986664088,-583.55,0.00022191,2]
[362088244,1747986664098,-751.02,0.00022191,2]
[362088245,1747986664108,-746.21,0.00022191,2]
[362088246,1747986664117,-626.41,0.00022191,2]
[362088247,1747986664129,-494.43,0.00022191,2]
[362088248,1747986664139,-430.0,0.00022191,2]
[362088249,1747986664149,-2083.46,0.00022191,2]
[362088250,1747986664159,-656.86,0.00022191,2]
[362088251,1747986664169,-778.2,0.00022191,2]
[362088252,1747986664180,-1637.49,0.00022191,2]
[362088253,1747986664189,-191.0,0.00022192,7]
[362088254,1747986664199,-155.0,0.00022192,2]
[362088255,1747986664208,-160.0,0.000222,7]
[362088256,1747986664217,-314.57823366,0.000222,7]
[362088257,1747986664226,-894.64583333,0.000222,7]
[362088258,1747986664236,-212.48480548,0.000222,7]
[362088259,1747986664245,-151.0,0.00022245,7]
[362088260,1747986664254,-1500.0,0.00022258,2]
[362088261,1747986664264,-1700.0,0.0002226,2]
[362088262,1747986664274,-3000.0,0.00022265,2]
[362088263,1747986664284,-2500.0,0.00022265,2]
[362088264,1747986664294,-257.7779726,0.00022274,2]
[362088265,1747986664304,-165.7707127,0.00022274,2]
[362088266,1747986664315,-153.0,0.00022274,2]
[362088267,1747986664324,-153.0,0.00022274,2]
[362088268,1747986664334,-153.0,0.00022274,2]
[362088269,1747986664344,-153.0,0.00022274,2]
[362088270,1747986664353,-881.36099912,0.00022345,2]
[362088271,1747986664363,-250.0,0.000224,2]
[362088272,1747986664372,-250.0,0.000224,2]
[362088273,1747986664384,-250.0,0.000224,2]
[362088274,1747986664394,-250.0,0.000224,2]
[362088275,1747986664515,-250.0,0.000224,2]
[362088276,1747986664525,-250.0,0.000224,2]
[362088277,1747986664534,-7601.52752722,0.00022417,7]
[362088278,1747986664544,-348.02608837,0.00022454,2]
[362088279,1747986664554,-3000.0,0.00022456,2]
[362088280,1747986664564,-160.0,0.00022458,4]
[362088281,1747986664574,-627.55,0.00022465,2]
[362088282,1747986664584,-506.23,0.00022465,2]
[362088283,1747986664594,-792.87,0.00022465,2]
[362088284,1747986664604,-632.28,0.00022465,2]
[362088285,1747986664614,-743.79,0.00022465,2]
[362088286,1747986664624,-323.67097995,0.00022465,2]
[362088287,1747986664635,-2056.54,0.00022465,2]
[362088288,1747986664644,-583.55,0.00022465,2]
[362088289,1747986664653,-751.02,0.00022465,2]
[362088290,1747986664664,-746.21,0.00022465,2]
[362088291,1747986664673,-626.41,0.00022465,2]
[362088292,1747986664683,-494.43,0.00022465,2]
[362088293,1747986664692,-430.0,0.00022465,2]
[362088294,1747986664702,-2083.46,0.00022465,2]
[362088295,1747986664711,-656.86,0.00022465,2]
[362088296,1747986664721,-778.2,0.00022465,2]
[362088297,1747986664731,-1637.49,0.00022465,2]
[362088298,1747986664740,-202.19513029,0.00022465,2]
[362088299,1747986664749,-152.522554,0.00022486,7]
[362088300,1747986664758,-186.049093,0.00022486,7]
[362088301,1747986664768,-186.049093,0.00022486,7]
[362088302,1747986664777,-151.0,0.000225,7]
[362088303,1747986664788,-151.0,0.000225,7]
[362088304,1747986664798,-152.205295,0.000225,3]
[362088305,1747986664808,-176.782383,0.000225,3]
[362088306,1747986664817,-176.782383,0.000225,2]
[362088307,1747986664827,-595.349336,0.000225,2]
[362088308,1747986664837,-2528.02594485,0.00022503,2]
[362088309,1747986664847,-595.349336,0.00022518,5]
[362088310,1747986664857,-153.0,0.00022548,2]
[362088311,1747986664867,-153.0,0.00022548,2]
[362088312,1747986664877,-153.0,0.00022548,2]
[362088313,1747986664887,-153.0,0.00022548,2]
[362088314,1747986664896,-153.0,0.00022548,2]
[362088315,1747986664906,-153.0,0.00022548,2]
[362088316,1747986664915,-153.0,0.00022548,2]
[362088317,1747986664925,-153.0,0.00022548,2]
[362088318,1747986664934,-153.0,0.00022548,2]
[362088319,1747986664944,-153.0,0.00022548,2]
[362088320,1747986664953,-153.0,0.00022548,2]
[362088321,1747986664962,-153.0,0.00022548,2]
[362088322,1747986664973,-153.0,0.00022548,2]
[362088323,1747986664983,-1536.736566,0.000226,5]
[362088324,1747986664993,-325.485445,0.00022603,2]
[362088325,1747986665002,-1000.0,0.0002262,5]
[362088326,1747986665012,-1000.0,0.0002264,5]
[362088327,1747986665021,-1000.0,0.0002266,5]
[362088328,1747986665031,-1000.0,0.0002268,5]
[362088329,1747986665041,-7601.52752722,0.00022693,7]
[362088330,1747986665050,-1000.0,0.000227,5]
[362088331,1747986665059,-151.0,0.00022739,7]
[362088332,1747986665069,-151.0,0.00022739,7]
[362088333,1747986665079,-344.541024,0.00022739,7]
[362088334,1747986665089,-344.541024,0.00022739,7]
[362088335,1747986665098,-151.0,0.00022739,7]
[362088336,1747986665109,-627.7663567,0.00022739,2]
[362088337,1747986665119,-506.32214907,0.00022739,2]
[362088338,1747986665129,-793.06148682,0.00022739,2]
[362088339,1747986665139,-632.30732919,0.00022739,2]
[362088340,1747986665155,-744.02263089,0.00022739,2]
[362088341,1747986665165,-2056.56637593,0.00022739,2]
[362088342,1747986665175,-583.61308059,0.00022739,2]
[362088343,1747986665185,-751.12797475,0.00022739,2]
[362088344,1747986665195,-746.4312273,0.00022739,2]
[362088345,1747986665206,-626.44514618,0.00022739,2]
[362088346,1747986665216,-494.45808864,0.00022739,2]
[362088347,1747986665227,-196.17564788,0.00022739,2]
[362088348,1747986665238,-2083.67704168,0.00022739,2]
[362088349,1747986665248,-656.99475299,0.00022739,2]
[362088350,1747986665257,-778.41107198,0.00022739,2]